{"text_format":"1","workbook":"xlsx","n_sheets":5,"sheets":["Details for your catering","Breakfast and coffee break","Sandwiches and salads","Apéro","Drinks"],"not_rendered":{"charts":0,"images":70,"macros":1,"external_links":0,"defined_names":5,"comments":0,"pivot_tables":0},"unopened":[],"bounds":{"document_bytes":16777216,"sheet_cells":100000,"rows_first":2000,"rows_last":500,"rows_between":2000,"halvings":0,"cell_chars":16384,"cell_head_chars":4096},"cells_cut":0,"cells_raw":0,"read":"whole","date_system":"1900"}

{"sheet":"Details for your catering","index":0,"n_rows":63,"n_cols":34,"rows_kept":63,"cut":false,"hidden":false,"merged":[[62,1,62,29],[62,31,62,32],[62,33,62,39],[60,1,60,29],[60,31,60,32],[60,33,60,39],[61,1,61,29],[61,31,61,32],[61,33,61,39],[58,1,58,29],[58,31,58,32],[58,33,58,39],[59,1,59,29],[59,31,59,32],[59,33,59,39],[55,1,55,39],[57,31,57,32],[57,33,57,39],[57,1,57,29],[37,21,37,39],[39,21,39,39],[41,1,41,11],[41,12,51,39],[44,1,44,10],[45,1,45,10],[46,1,46,10],[47,1,47,10],[48,1,48,10],[49,1,49,10],[50,1,50,10],[51,1,51,10],[37,1,37,19],[39,1,39,19],[21,21,21,39],[23,21,23,39],[25,21,25,39],[27,21,27,39],[29,21,29,39],[21,1,21,19],[23,1,23,19],[25,1,25,19],[27,1,27,19],[29,1,29,19],[31,1,31,19],[31,21,31,39],[33,21,33,39],[35,21,35,39],[14,21,14,39],[9,1,9,19],[10,1,10,19],[11,1,11,19],[12,1,12,19],[13,1,13,19],[14,1,14,19],[9,21,9,39],[10,21,10,39],[11,21,11,39],[12,21,12,39],[13,21,13,39],[33,1,33,19],[35,1,35,19],[8,1,8,19],[7,21,7,39],[8,21,8,39],[4,1,4,19],[4,21,4,39],[5,1,5,19],[5,21,5,39],[7,1,7,19]]}
[]
[]
[]
[]
[null,"Catering ",null,null,null,null,null,null,null,null,null,null,null,null,null,null,null,null,null,null,null,"Catering "]
[null,"Forum St. Peter",null,null,null,null,null,null,null,null,null,null,null,null,null,null,null,null,null,null,null,"Paradeplatz"]
[]
[null,"Forum St.Peter",null,null,null,null,null,null,null,null,null,null,null,null,null,null,null,null,null,null,null,"Reception"]
[null,"St.Peterstrasse 19",null,null,null,null,null,null,null,null,null,null,null,null,null,null,null,null,null,null,null,"Paradeplatz 8"]
[null,"8070 Zürich",null,null,null,null,null,null,null,null,null,null,null,null,null,null,null,null,null,null,null,"8070 Zürich"]
[]
[null,"Contact person on site:",null,null,null,null,null,null,null,null,null,null,null,null,null,null,null,null,null,null,null,"Contact person on site:"]
[null,"T +41 44 333 99 99",null,null,null,null,null,null,null,null,null,null,null,null,null,null,null,null,null,null,null,"T +41 44 333 99 11"]
[]
[null,"reservation.fsp@credit-suisse.com",null,null,null,null,null,null,null,null,null,null,null,null,null,null,null,null,null,null,null,"exb.reception@credit-suisse.com"]
[]
[]
[]
[]
[]
[]
[null,"Name / Surname "]
[]
[null,"PID no. / GPN"]
[]
[null,"Business unit / legal entity invoice recipent"]
[]
[null,"Email address"]
[]
[null,"Event's title"]
[]
[null,"Room number"]
[]
[null,"Delivery date"]
[null,null,null,null,null,null,null,null,null,null,null,null,null,null,null,null,null,null,null,null,null,9]
[null,"Start time / End time of the event"]
[]
[null,"Break time"]
[]
[null,"Number of people"]
[]
[null,"Comments, special request"]
[]
[]
[null,"Order date"]
[null,{"$f":"TODAY()","v":"2023-09-11"}]
[]
[]
[]
[]
[]
[]
[]
[]
[]
[null,"Summary of your order"]
[]
[null,"Breakfast and coffee break",null,null,null,null,null,null,null,null,null,null,null,null,null,null,null,null,null,null,null,null,null,null,null,null,null,null,null,null,null,"CHF",null,{"$f":"SUM('Breakfast and coffee break'!L6:L15,'Breakfast and coffee break'!L19:L25,'Breakfast and coffee break'!L30:L38,'Breakfast and coffee break'!L42:L51,'Breakfast and coffee break'!L57,'Breakfast and coffee break'!L61,'Breakfast and coffee break'!L65,'Breakfast and coffee break'!L77,'Breakfast and coffee break'!L81)","v":0}]
[null,"Sandwiches and Salads",null,null,null,null,null,null,null,null,null,null,null,null,null,null,null,null,null,null,null,null,null,null,null,null,null,null,null,null,null,"CHF",null,{"$f":"SUM('Sandwiches and salads'!J6:J16,'Sandwiches and salads'!J20:J29,'Sandwiches and salads'!J35:J40,'Sandwiches and salads'!J44:J48)","v":0}]
[null,"Apéro",null,null,null,null,null,null,null,null,null,null,null,null,null,null,null,null,null,null,null,null,null,null,null,null,null,null,null,null,null,"CHF",null,{"$f":"SUM(Apéro!K6:K15,Apéro!K19:K24,Apéro!K28:K33,Apéro!K37:K43,Apéro!K47:K53,Apéro!K57:K61,Apéro!K65:K66,Apéro!K70:K73,Apéro!K79,Apéro!K84,Apéro!K91,Apéro!K98)","v":0}]
[null,"Drinks",null,null,null,null,null,null,null,null,null,null,null,null,null,null,null,null,null,null,null,null,null,null,null,null,null,null,null,null,null,"CHF",null,{"$f":"SUM(Drinks!I6:I9,Drinks!I13:I14,Drinks!I18:I26,Drinks!I29:I35,Drinks!I41:I43,Drinks!I47:I50,Drinks!I54,Drinks!I58:I62,Drinks!I68:I71)","v":0}]
[]
[null,"Your order total",null,null,null,null,null,null,null,null,null,null,null,null,null,null,null,null,null,null,null,null,null,null,null,null,null,null,null,null,null,"CHF",null,{"$f":"SUM(AH58:AN62)","v":0}]

{"sheet":"Breakfast and coffee break","index":1,"n_rows":83,"n_cols":12,"rows_kept":83,"cut":false,"hidden":false,"merged":[[0,2,0,11],[1,2,1,11],[52,2,52,11],[70,2,70,11]]}
[null,null,"COFFEE BREAK"]
[null,null,"Coffee break à la carte"]
[]
[null,null,null,null,null,"BREAKFAST PASTRIES",null,null,"Price",null,"Unit","Amount"]
[]
[null,null,null,null,null,"Butter croissant",null,null,2,"/","piece",{"$f":"I6*C6","v":0}]
[null,null,null,null,null,"Pretzel croissant",null,null,2,"/","piece",{"$f":"I7*C7","v":0}]
[null,null,null,null,null,"Wholegrain croissant",null,null,2,"/","piece",0]
[null,null,null,null,null,"Maize roll",null,null,2.7,"/","piece",0]
[null,null,null,null,null,"Wholegrain roll",null,null,2.7,"/","piece",0]
[null,null,null,null,null,"Fitness roll (fruit roll)",null,null,2.7,"/","piece",0]
[null,null,null,null,null,"Mini chocolate roll",null,null,2.7,"/","piece",0]
[null,null,null,null,null,"Protein roll",null,null,2.7,"/","piece",0]
[null,null,null,null,null,"Mini pretzel with butter",null,null,3.2,"/","piece",0]
[null,null,null,null,null,"Gluten free roll",null,null,3.2,"/","piece",{"$f":"I15*C15","v":0}]
[]
[null,null,null,null,null,"MINI PASTRIES"]
[]
[null,null,null,null,null,"Mini butter croissant",null,null,1.7,"/","piece",{"$f":"I19*C19","v":0}]
[null,null,null,null,null,"Mini pretzel crossaint",null,null,1.7,"/","piece",0]
[null,null,null,null,null,"Mini wholegrain croissant",null,null,1.7,"/","piece",0]
[null,null,null,null,null,"Mini nut sticky bun",null,null,3.5,"/","piece",0]
[null,null,null,null,null,"Mini vanilla danish",null,null,3.5,"/","piece",0]
[null,null,null,null,null,"Mini donut filled",null,null,3,"/","piece",0]
[null,null,null,null,null,"Puff filled with vanilla cream",null,null,3.5,"/","piece",0]
[]
[]
[null,null,null,null,null,"BIRCHERMUESLI AND FRUITS"]
[]
[null,null,null,null,null,"Birchermuesli in a jar",null,null,3.5,"/","piece",{"$f":"I30*C30","v":0}]
[null,null,null,null,null,"Vegan birchermuesli in a jar",null,null,3.5,"/","piece",0]
[null,null,null,null,null,"Platter with sliced fruits",null,null,21.5,"/","piece",0]
[null,null,null,null,null,"Seasonal, whole fruits (8-10) in a basket",null,null,14.5,"/","piece",0]
[null,null,null,null,null,"Trek protein bar \"Banana and Oats\"",null,null,3.2,"/","piece",0]
[null,null,null,null,null,"Trek protein bar \"Salty Caramel\"",null,null,3.2,"/","piece",0]
[null,null,null,null,null,"Trek protein bar \"Cocoa and Coconut\"",null,null,3.2,"/","piece",0]
[null,null,null,null,null,"Homemade nut mix (50g)",null,null,5,"/","piece",{"$f":"I37*C37","v":0}]
[null,null,null,null,null,"Sliced,seasonal fruits in weck jar",null,null,3.5,"/","piece",{"$f":"I38*C38","v":0}]
[]
[null,null,null,null,null,"SWEET PASTRIES"]
[]
[null,null,null,null,null,"Chocolate cake",null,null,4.5,"/","piece",{"$f":"I42*C42","v":0}]
[null,null,null,null,null,"Lemon cake",null,null,4.5,"/","piece",0]
[null,null,null,null,null,"Carrot cake",null,null,4.5,"/","piece",0]
[null,null,null,null,null,"Vegan banana cake",null,null,4.5,"/","piece",0]
[null,null,null,null,null,"Amaretti",null,null,3,"/","piece",0]
[null,null,null,null,null,"Macarons (min. 5 pieces)",null,null,2.9,"/","piece",0]
[null,null,null,null,null,"Friandises (2 pieces)",null,null,4,"/","2 pieces",0]
[null,null,null,null,null,"Appenzell gingerbread",null,null,3.5,"/","piece",{"$f":"I49*C49","v":0}]
[null,null,null,null,null,"Züriwerk cookies",null,null,3.5,"/","piece",{"$f":"I50*C50","v":0}]
[null,null,null,null,null,"Christmas cookies (November / December)",null,null,3.5,"/","2 pieces",{"$f":"I51*C51","v":0}]
[]
[null,null,"Morning coffee break and breakfast packages"]
[]
[null,null,null,null,null,null,null,null,"Price",null,"Unit","Amount"]
[]
[null,null,null,null,null,"Morning Coffee Break Basic (min. 5 people)",null,null,8.5,"/","person",{"$f":"I57*C57","v":0}]
[null,null,null,null,null,"Butter, pretzel and wholegrain croissants"]
[null,null,null,null,null,"coffee, tea, mineral water"]
[]
[null,null,null,null,null,"Morning Coffee Break Classic (min. 5 people)",null,null,12.5,"/","person",{"$f":"I61*C61","v":0}]
[null,null,null,null,null,"Butter, pretzel and wholegrain croissants"]
[null,null,null,null,null,"coffee, tea, mineral water, orange juice, seasonal smoothie"]
[]
[null,null,null,null,null,"Breakfast (min. 5 people)",null,null,28,"/","person",{"$f":"I65*C65","v":0}]
[null,null,null,null,null,"Selection of mini rolls sweet and salty, birchermuesli"]
[null,null,null,null,null,"plate with Italian and Swiss cheese, selection of dried meat"]
[null,null,null,null,null,"butter, jam, honey, platter with sliced fruits"]
[]
[]
[null,null,"Afternoon coffee break packages"]
[]
[null,null,null,null,null,"Afternoon coffee break packages available from 1.00 pm - 4.00 pm"]
[null,null,null,null,null,"Minimum order quantity: 5 people"]
[null,null,null,null,null,null,null,null,"Price",null,"Unit","Amount"]
[]
[null,null,null,null,null,"Afternoon Coffee Break Classic (min. 5 people)",null,null,18,"/","person",{"$f":"I77*C77","v":0}]
[null,null,null,null,null,"Coffee, tea, mineral water, soft drinks, orange juice"]
[null,null,null,null,null,"amaretti, friandises, sliced fruits in weck jar"]
[]
[null,null,null,null,null,"Afternoon Coffee Break Sunset (min. 5 people)",null,null,19.5,"/","person",{"$f":"I81*C81","v":0}]
[null,null,null,null,null,"Coffee, tea, mineral water, soft drinks, orange juice"]
[null,null,null,null,null,"amaretti, puffs filled with vanilla cream, Appenzell gingerbread"]

{"sheet":"Sandwiches and salads","index":2,"n_rows":48,"n_cols":10,"rows_kept":48,"cut":false,"hidden":false,"merged":[[1,1,1,9],[30,1,30,9],[0,1,0,9]]}
[null,"WORKING LUNCH"]
[null,"Sandwiches"]
[]
[null,null,null,null,"LUNCH-MINI-SANDWICHES  (Minimum order quantity: 6 pieces per type)",null,"Price",null,"Unit","Amount"]
[]
[null,null,null,null,"Wheat roll with antipasti, tomato, bell pepper, rice-mayonnaise, rocket salad",null,5,"/","piece",{"$f":"G6*B6","v":0}]
[null,null,null,null,"Ciabatta with hummus, tomato, cucucmber, cress",null,5,"/","piece",0]
[null,null,null,null,"Wheat roll with egg salad, mayonnaise",null,5,"/","piece",0]
[null,null,null,null,"Castellino with Emmental cheese, rocket salad and tomato",null,5,"/","piece",0]
[null,null,null,null,"Nut bread with Brie and pear",null,5,"/","piece",0]
[null,null,null,null,"Ciabatta wtih mozzarella, tomato, basil and pesto",null,5,"/","piece",0]
[null,null,null,null,"Lye roll with dried beef «Mostbröckli» and gherkin",null,5,"/","piece",0]
[null,null,null,null,"Valais roll with ham, salad and egg ",null,5,"/","piece",0]
[null,null,null,null,"Pastorello with salami, Emmental cheese and gherkin",null,5,"/","piece",0]
[null,null,null,null,"Wheat roll with meat loaf, egg, cucumber and sauce tartare",null,5,"/","piece",0]
[null,null,null,null,"Lye roll with smoked salmon, capers and dill",null,5,"/","piece",0]
[]
[null,null,null,null,"LUNCH SANDWICHES (Minimum order quantity: 3 pieces per type)"]
[]
[null,null,null,null,"Nut roll with Gruyère, pumpkin chutney and leaf salad",null,7.5,"/","piece",{"$f":"G20*B20","v":0}]
[null,null,null,null,"Tomato focaccia with mozzarella, pesto, tomato and rocket",null,7.5,"/","piece",0]
[null,null,null,null,"Soft weggli roll with salami, cocktail sauce and gherkin",null,6.5,"/","piece",0]
[null,null,null,null,"Spelt roll with meatloaf, mustard and salad",null,6.5,"/","piece",0]
[null,null,null,null,"Sesame roll with gravlax, horseradish, dill and salad",null,9,"/","piece",0]
[null,null,null,null,"Roll with smoked turkey, mango chutney and sesame mayonnaise",null,7,"/","piece",0]
[null,null,null,null,"Protein roll with brie, mountain cranberries and water cress",null,7.5,"/","piece",0]
[null,null,null,null,"Sunflower seed roll with hummus, fig mustard and rocket salad",null,6.5,"/","piece",0]
[null,null,null,null,"Soft weggli roll with egg and chives",null,6.5,"/","piece",0]
[null,null,null,null,"Rustico roll with roastbeef, sauce tatare and tomato",null,9,"/","piece",0]
[]
[null,"Salads"]
[]
[null,null,null,null,"SMALL SALADS (Minimum order quantity: 3 pieces per type)",null,"Price",null,"Unit","Amount"]
[]
[null,null,null,null,"Carrot salad with orange and walnut",null,6,"/","piece",{"$f":"G35*B35","v":0}]
[null,null,null,null,"Chicken curry salad with fruits and cashews",null,8.5,"/","piece",{"$f":"G36*B36","v":0}]
[null,null,null,null,"Beluga lentil salad with vegetable brunoise and balsamic dressing",null,5.5,"/","piece",{"$f":"G37*B37","v":0}]
[null,null,null,null,"Greek salad feta and olives",null,7,"/","piece",{"$f":"G38*B38","v":0}]
[null,null,null,null,"Mixed salad with cucumber, tomato, carrot and corn",null,6,"/","piece",{"$f":"G39*B39","v":0}]
[null,null,null,null,"Tomato salad with buffalo mozzarella and aceto balsamico",null,7,"/","piece",{"$f":"G40*B40","v":0}]
[]
[null,null,null,null,"LARGE SALADS (Minimum order quantity: 3 pieces per type)"]
[]
[null,null,null,null,"Salade Niçoise with Tuna (Indonesia), egg, green beans and potatoes",null,14,"/","piece",{"$f":"G44*B44","v":0}]
[null,null,null,null,"Caesar salad with chicken, bacon, croutons and parmesan",null,14,"/","piece",0]
[null,null,null,null,"Mixed salad with cucumber, carrot, corn, tomato and falafel",null,12,"/","piece",0]
[null,null,null,null,"Field salad with bacon, egg and croutons",null,13,"/","piece",0]
[null,null,null,null,"Leaf salad with sliced beef fillet, avocado, melon and tomato",null,16,"/","piece",0]

{"sheet":"Apéro","index":3,"n_rows":105,"n_cols":11,"rows_kept":105,"cut":false,"hidden":false,"merged":[[0,1,0,10],[1,1,1,10],[2,1,2,10],[73,1,73,10],[74,1,74,10]]}
[null,"APÉRO"]
[null,"Apéro à la carte"]
[null,"Our chef suggests 5 small dishes for aperitifs and 10 for cocktail"]
[null,null,null,null,null,"MINI BREAD ROLLS (Various types, minimum order quantity: 6 pieces per type)",null,"Price",null,"Unit","Amount"]
[]
[null,null,null,null,null,"Brie",null,3.5,"/","piece",{"$f":"H6*B6","v":0}]
[null,null,null,null,null,"Egg",null,3.5,"/","piece",0]
[null,null,null,null,null,"Salami",null,3.5,"/","piece",0]
[null,null,null,null,null,"Smoked turkey",null,3.5,"/","piece",0]
[null,null,null,null,null,"Gruyère cheese",null,3.5,"/","piece",0]
[null,null,null,null,null,"Tuna",null,3.5,"/","piece",0]
[null,null,null,null,null,"Cured ham",null,3.5,"/","piece",0]
[null,null,null,null,null,"Grisons dried meat",null,3.5,"/","piece",0]
[null,null,null,null,null,"Roastbeef",null,3.5,"/","piece",0]
[null,null,null,null,null,"Gravlax (Norway) with horseradish",null,3.5,"/","piece",0]
[]
[null,null,null,null,null,"FILLED CONE (Minimum order quantity: 4 pieces per type)"]
[]
[null,null,null,null,null,"with smoked salmon (Norway), cucumber and horseradish",null,4,"/","piece",{"$f":"H19*B19","v":0}]
[null,null,null,null,null,"with beef tatar and capers",null,4,"/","piece",0]
[null,null,null,null,null,"with avocado and black tiger prawns (Vietnam)",null,4,"/","piece",0]
[null,null,null,null,null,"with goat cream cheese, honey and thyme",null,4,"/","piece",0]
[null,null,null,null,null,"with sugar pea-mint mousse and affila cress",null,4,"/","piece",0]
[null,null,null,null,null,"with basil-ricotta and braised tomatoes",null,4,"/","piece",0]
[]
[null,null,null,null,null,"FINGER FOOD, COLD, VEGETARIAN (Minimum order quantity: 5 pieces per type)"]
[]
[null,null,null,null,null,"Marinated olives (100 g) ",null,8.5,"/","portion",{"$f":"H28*B28","v":0}]
[null,null,null,null,null,"Puff pastry flutes (60 g) ",null,12.5,"/","portion",0]
[null,null,null,null,null,"Chips (30 g) ",null,3.5,"/","portion",0]
[null,null,null,null,null,"Homemade nut mix (50g)",null,5,"/","portion",0]
[null,null,null,null,null,"Macarons with goat cheese and fig",null,3,"/","piece",0]
[null,null,null,null,null,"Chicory-orange salad with walnuts",null,4,"/","piece",0]
[]
[null,null,null,null,null,"FINGER FOOD, COLD (Minimum order quantity: 5 pieces per type)"]
[]
[null,null,null,null,null,"Parmesan pieces (100 g) ",null,10.5,"/","portion",{"$f":"H37*B37","v":0}]
[null,null,null,null,null,"Marinated salmon (Norway) on cucumber salad, single cream and dill",null,5,"/","piece",{"$f":"H38*B38","v":0}]
[null,null,null,null,null,"Tuna Tataki (Indonesia) with soy, sake, mirin and radish",null,5.5,"/","piece",0]
[null,null,null,null,null,"Black tiger prawns (Vietnam) with avocado mousse",null,4.5,"/","piece",0]
[null,null,null,null,null,"Chicken stripes with curry, peanuts and pineapple",null,4.5,"/","piece",0]
[null,null,null,null,null,"Vitello tonnato",null,4.5,"/","piece",0]
[null,null,null,null,null,"Roastbeef with rocket and parmesan",null,5,"/","piece",0]
[]
[null,null,null,null,null,"FINGER FOOD, HOT, VEGETARIAN (Minimum order quantity: 5 pieces per type)"]
[]
[null,null,null,null,null,"Vegetarian capuns",null,4.5,"/","piece",{"$f":"H47*B47","v":0}]
[null,null,null,null,null,"Vegetable samosa with vegan yoghurt-mint dip",null,4.5,"/","piece",0]
[null,null,null,null,null,"Mini pizza Margherita",null,3,"/","piece",0]
[null,null,null,null,null,"Pakoras with mango chutney",null,4.5,"/","piece",0]
[null,null,null,null,null,"Mini cheese tarte",null,3,"/","piece",0]
[null,null,null,null,null,"Spring rolls with vegetables",null,3.5,"/","2 pieces",{"$f":"H52*B52","v":0}]
[null,null,null,null,null,"Mini spinach tarte",null,3,"/","piece",0]
[]
[null,null,null,null,null,"FINGER FOOD, HOT (Minimum order quantity: 5 pieces per type)"]
[]
[null,null,null,null,null,"Ham croissants",null,3,"/","piece",{"$f":"H57*B57","v":0}]
[null,null,null,null,null,"Meat loaf patty with mustard",null,3,"/","piece",{"$f":"H58*B58","v":0}]
[null,null,null,null,null,"Fried prawn (Vietnam) with melon salad",null,4,"/","piece",{"$f":"H59*B59","v":0}]
[null,null,null,null,null,"Mini cheese burger",null,5,"/","piece",{"$f":"H60*B60","v":0}]
[null,null,null,null,null,"Bangkok style chicken skewer",null,4.5,"/","piece",{"$f":"H61*B61","v":0}]
[]
[null,null,null,null,null,"SOUP (Minimum order quantity: 5 pieces per type)"]
[]
[null,null,null,null,null,"Cream of pumpkin",null,4,"/","piece",{"$f":"H65*B65","v":0}]
[null,null,null,null,null,"Sweet potato-coconut soup",null,4,"/","piece",{"$f":"H66*B66","v":0}]
[]
[null,null,null,null,null,"SWEET CONCLUSION (Minimum order quantity: 5 pieces per type)"]
[]
[null,null,null,null,null,"Friandises (2 pieces)",null,4,"/","2 pieces",{"$f":"H70*B70","v":0}]
[null,null,null,null,null,"Cheese cake ",null,3,"/","piece",{"$f":"H71*B71","v":0}]
[null,null,null,null,null,"Chocolate mousse",null,4,"/","piece",{"$f":"H72*B72","v":0}]
[null,null,null,null,null,"Caramel custard",null,3,"/","piece",{"$f":"H73*B73","v":0}]
[]
[null,"Apéro reception packages"]
[]
[null,null,null,null,null,null,null,"Price",null,"Unit","Amount"]
[]
[null,null,null,null,null,"APÉRO SMALL (Minimum order quantity: 5 people)",null,8.5,"/","person",{"$f":"H79*B79","v":0}]
[null,null,null,null,null,"Puff pastry"]
[null,null,null,null,null,"Olives "]
[null,null,null,null,null,"Parmesan"]
[]
[null,null,null,null,null,"APÉRO SUISSE (Minimum order quantity: 5 people, 1 piece per person)",null,18.5,"/","person",{"$f":"H84*B84","v":0}]
[null,null,null,null,null,"Mini cheese tarts"]
[null,null,null,null,null,"Ham croissants"]
[null,null,null,null,null,"Meat loaf patty with mustard"]
[null,null,null,null,null,"Mini bread roll with Grisons dried meat"]
[null,null,null,null,null,"Tomato-mozzarella skewer"]
[]
[null,null,null,null,null,"APÉRO ASIA (Minimum order quantity: 5 people, 1 piece per person)",null,19.5,"/","person",{"$f":"H91*B91","v":0}]
[null,null,null,null,null,"Spring roll with vegetables"]
[null,null,null,null,null,"Sliced chicken Bangkok style"]
[null,null,null,null,null,"Tuna Tataki (Indonesia) with soy, sake, mirin and radish"]
[null,null,null,null,null,"Prawn (Vietnam) deep fried in tempura dough"]
[null,null,null,null,null,"Coconut-lemon grass soup"]
[]
[null,null,null,null,null,"APÉRO DELUXE (Minimum order quantity: 10 people, 1 piece per person)",null,29.5,"/","person",{"$f":"H98*B98","v":0}]
[null,null,null,null,null,"Sweet potato-coconut soup"]
[null,null,null,null,null,"Macarons with goat cheese and fig"]
[null,null,null,null,null,"Mini cheeseburger"]
[null,null,null,null,null,"Cube of marinated salmon (Norway) with wasabi"]
[null,null,null,null,null,"Filled cone with beef tatar and capers"]
[null,null,null,null,null,"Black tiger prawns (Vietnam) with avocado mousse"]
[null,null,null,null,null,"Filled mini tortillas"]

{"sheet":"Drinks","index":4,"n_rows":73,"n_cols":9,"rows_kept":73,"cut":false,"hidden":false,"merged":[[63,1,63,8],[0,1,0,8],[1,1,1,8],[36,1,36,8],[47,3,47,4],[58,3,58,4]]}
[null," DRINKS \nAll drinks are billed according to consumption"]
[null,"Alcohol-free drinks"]
[]
[null,null,null,"HOT DRINKS",null,"Price",null,"Unit","Amount"]
[]
[null,null,null,"Coffee",null,4,"/","piece",{"$f":"B6*F6","v":0}]
[null,null,null,"Tea, various types",null,4,"/","piece",{"$f":"B7*F7","v":0}]
[null,null,null,"Latte macchiato",null,5,"/","piece",0]
[null,null,null,"Cappuccino",null,5,"/","piece",0]
[]
[null,null,null,"FRUIT JUICES"]
[]
[null,null,null,"Orange juice ","1 l",10,"/","piece",{"$f":"B13*F13","v":0}]
[null,null,null,"Michel Bodyguard multivitamin juice","33cl",3.5,"/","piece",{"$f":"B14*F14","v":0}]
[]
[null,null,null,"COLD DRINKS"]
[]
[null,null,null,"Lokales Wasser 37, sparkling water, glass bottle","1 l",7,"/","piece",{"$f":"B18*F18","v":0}]
[null,null,null,"Lokales Wasser 37, sparkling water, glass bottle","50 cl",5,"/","piece",{"$f":"B19*F19","v":0}]
[null,null,null,"Lokales Wasser 37, still water, glass bottle","1 l",7,"/","piece",0]
[null,null,null,"Lokales Wasser 37, still water, glass bottle","50 cl",5,"/","piece",0]
[null,null,null,"Coca Cola, glass bottle ","33 cl",4.5,"/","piece",0]
[null,null,null,"Coca Cola Zero, glass bottle ","33 cl",4.5,"/","piece",0]
[null,null,null,"Apple juice, glass bottle","33 cl",4.5,"/","piece",0]
[null,null,null,"Rivella Red, glass bottle ","33 cl",4.5,"/","piece",0]
[null,null,null,"Rivella Blue, glass bottle ","33 cl",4.5,"/","piece",0]
[]
[null,null,null,"COLD DRINKS (Paradeplatz only)"]
[null,null,null,"Lokales Wasser 37, sparkling water PET","50 cl",5,"/","piece",{"$f":"B29*F29","v":0}]
[null,null,null,"Lokales Wasser 37, still water PET","50 cl",5,"/","piece",{"$f":"B30*F30","v":0}]
[null,null,null,"Coca Cola, PET","50 cl",5,"/","piece",{"$f":"B31*F31","v":0}]
[null,null,null,"Coca Cola Zero, PET","50 cl",5,"/","piece",0]
[null,null,null,"Rivella Red, PET","50 cl",5,"/","piece",0]
[null,null,null,"Rivella Blue, PET","50 cl",5,"/","piece",0]
[null,null,null,"Apple juice, PET","50 cl",5,"/","piece",{"$f":"B35*F35","v":0}]
[]
[null,"Wine"]
[]
[null,null,null,"CHAMPAGNE/SPARKLING WINE 75 cl",null,"Price",null,"Unit","Amount"]
[]
[null,null,null,"Rosé Spumante Motivo | Borgo Molino | Veneto Italy",null,43,"/","piece",{"$f":"B41*F41","v":0}]
[null,null,null,"Prosecco Extra Dry DOC | Borgo Molino | Veneto Italy",null,42,"/","piece",{"$f":"B42*F42","v":0}]
[null,null,null,"Laurent Perrier brut | Champagne France",null,84,"/","piece",0]
[]
[null,null,null,"WHITE WINE, 75 CL"]
[]
[null,null,null,"Federweisser Pinot Noir | Watter Weine am Katzensee | Zurich",null,44,"/","piece",{"$f":"B47*F47","v":0}]
[null,null,null,"Pinot Grigio Grivò DOC | Volpe Pasini | Friuli Italy",null,42,"/","piece",{"$f":"B48*F48","v":0}]
[null,null,null,"Bianco di Merlot | Corti Nicola | Ticino",null,47,"/","piece",0]
[null,null,null,"Grüner Veltliner | Alexs | Burgenland Austria",null,42,"/","piece",0]
[]
[null,null,null,"ROSÉ WINE 75CL"]
[]
[null,null,null,"Chiaretto Rosé | Riviera del Garda | Lombardy Italy",null,42,"/","piece",{"$f":"B54*F54","v":0}]
[]
[null,null,null,"RED WINE, 75 CL"]
[]
[null,null,null,"Maienfelder Pinot Noir Barrique | Tanner | Grisons",null,56,"/","piece",{"$f":"B58*F58","v":0}]
[null,null,null,"Nero d' Avola Chiaramontesi | Luna Gaia | Sicily Italy",null,66,"/","piece",{"$f":"B59*F59","v":0}]
[null,null,null,"Carmignano Riserva DOCG | Piaggia | Tuscany Italy",null,63,"/","piece",0]
[null,null,null,"Colossal Reserve Tinto DOCa | Vinho Regional Lisboa | Portugal",null,39,"/","piece",0]
[null,null,null,"Zweigelt Pahlen | Alexs | Burgenland Austria",null,45,"/","piece",0]
[]
[null,"Beer"]
[]
[null,null,null,"BEER"]
[]
[null,null,null,"Feldschlösschen Original ","33 cl",5,"/","piece",{"$f":"B68*F68","v":0}]
[null,null,null,"Appenzeller Quöllfrisch","33 cl",5,"/","piece",{"$f":"B69*F69","v":0}]
[null,null,null,"Feldschlösschen, alcohol-free","33 cl",5,"/","piece",0]
[null,null,null,"Appenzeller Quöllfrisch, alcohol-free","33 cl",5,"/","piece",0]
[]
[null,null,null,"All drinks are billed according to consumption"]